fUSD/lending_fUSD_20250524
["ID","MTS","AMOUNT","RATE_DAILY","PERIOD"]
[362205767,1748097032809,-619.56207027,0.00019897,2]
[362205769,1748097032817,-619.56207027,0.00019897,2]
[362205771,1748097032827,-619.56207027,0.00019898,2]
[362205773,1748097032837,-168.15238171,0.00019898,2]
[362205775,1748097032846,-197.94790551,0.00019898,2]
[362205777,1748097032855,-5000.0,0.00019898,2]
[362205779,1748097032864,-619.56207027,0.00019898,2]
[362205781,1748097032874,-619.56207027,0.00019899,2]
[362205783,1748097032883,-619.56207027,0.00019899,2]
[362205785,1748097032892,-619.56207027,0.000199,2]
[362205787,1748097032902,-152.186292,0.000199,2]
[362205789,1748097032911,-732.388,0.000199,2]
[362205791,1748097032920,-197.94790551,0.000199,2]
[362205793,1748097032929,-3550.05971397,0.000199,2]
[362205795,1748097032939,-3550.05971383,0.000199,2]
[362205797,1748097032948,-3550.05971383,0.000199,2]
[362205798,1748097032958,-3550.05971383,0.000199,2]
[362205799,1748097032967,-716.1361916,0.000199,2]
[362205800,1748097032979,-1124.49855846,0.000199,2]
[362205801,1748097032993,-725.95478272,0.000199,2]
[362205802,1748097033005,-566.15665031,0.000199,2]
[362205804,1748097038274,-1000.0,0.0001885,2]
[362205805,1748097038284,-154.0,0.0001986,2]
[362205806,1748097038293,-417.31353074,0.000199,2]
[362205807,1748097038303,-3550.05971383,0.000199,2]
[362205808,1748097038313,-3550.05971383,0.000199,2]
[362205809,1748097038323,-3550.05971383,0.000199,2]
[362205810,1748097038332,-2079.3135121,0.000199,2]
[362205811,1748097038344,-278.12067112,0.000199,2]
[362205812,1748097038356,-1192.62553061,0.000199,2]
[362205813,1748097038365,-42.37446939,0.000199,2]
[362205856,1748097040583,-435.48,0.000199,2]
[362205857,1748097040735,-338.56244988,0.000199,2]
[362205881,1748097043733,-500.0,0.000199,2]
[362205891,1748097043815,-2233.64279456,0.000199,2]
[362205892,1748097043825,-1836.42250406,0.000199,2]
[362205893,1748097043836,-1454.97318599,0.000199,2]
[362205894,1748097044098,-258.66402378,0.000199,2]
[362205895,1748097044111,-3550.05971383,0.000199,2]
[362205896,1748097044120,-3550.05971383,0.000199,2]
[362205897,1748097044129,-3550.05971383,0.000199,2]
[362205898,1748097044138,-3550.05971383,0.000199,2]
[362205899,1748097044148,-3550.05971383,0.000199,2]
[362205901,1748097044158,-3550.05971383,0.000199,2]
[362205903,1748097044167,-3550.05971383,0.000199,2]
[362205905,1748097044177,-619.56207027,0.000199,2]
[362205907,1748097044187,-3550.05971383,0.000199,2]
[362205908,1748097044197,-3550.05971383,0.000199,2]
[362205910,1748097044207,-701.15233574,0.000199,2]
[362205912,1748097044216,-302.56,0.00019915,2]
[362205914,1748097044225,-301.53,0.00019915,2]
[362205916,1748097044234,-305.46,0.00019915,2]
[362205918,1748097044244,-302.9,0.00019915,2]
[362205919,1748097044253,-305.91,0.00019915,2]
[362205921,1748097044262,-300.24,0.00019915,2]
[362205923,1748097044271,-301.97,0.00019915,2]
[362205925,1748097044280,-303.33,0.00019915,2]
[362205927,1748097044289,-303.79,0.00019915,2]
[362205929,1748097044298,-301.69,0.00019915,2]
[362205930,1748097044308,-302.44,0.00019915,2]
[362205932,1748097044318,-301.36,0.00019915,2]
[362205934,1748097044327,-300.09,0.00019915,2]
[362205936,1748097044336,-304.31,0.00019915,2]
[362205938,1748097044348,-303.09,0.00019915,2]
[362205940,1748097044357,-305.03,0.00019915,2]
[362205941,1748097044366,-305.94,0.00019915,2]
[362205942,1748097044375,-305.86,0.00019915,2]
[362205943,1748097044385,-303.51,0.00019915,2]
[362205944,1748097044395,-303.97,0.00019915,2]
[362205945,1748097044404,-304.44,0.00019915,2]
[362205946,1748097044414,-300.85,0.00019915,2]
[362205947,1748097044423,-302.41,0.00019915,2]
[362205948,1748097044432,-500.0,0.00019973,2]
[362205949,1748097044441,-500.0,0.00019973,2]
[362205950,1748097044450,-500.0,0.00019973,2]
[362205951,1748097044460,-184.27046063,0.00019979,2]
[362205952,1748097044469,-215.18202591,0.00019979,2]
[362205953,1748097044479,-200.74871214,0.00019979,2]
[362205954,1748097044489,-3039.665187,0.0001998,2]
[362205955,1748097044499,-150.0,0.00019982,2]
[362205956,1748097044508,-150.0,0.00019982,2]
[362205957,1748097044517,-150.0,0.00019982,2]
[362205958,1748097044527,-549.84355715,0.00019986,2]
[362205959,1748097044536,-305.42,0.00019986,2]
[362205960,1748097044545,-300.83,0.00019986,2]
[362205961,1748097044555,-154.36563588,0.00019986,2]
[362205965,1748097046185,-881.0,0.0001986,2]
[362205966,1748097046196,-148.23436412,0.00019986,2]
[362205967,1748097046206,-300.17,0.00019986,2]
[362205968,1748097046216,-305.55,0.00019986,2]
[362205969,1748097046226,-300.16,0.00019986,2]
[362205970,1748097046236,-302.22,0.00019986,2]
[362205971,1748097046246,-300.01,0.00019986,2]
[362205972,1748097046256,-302.45,0.00019986,2]
[362205973,1748097046265,-305.31,0.00019986,2]
[362205974,1748097046275,-549.84355715,0.0001999,2]
[362205975,1748097046284,-549.84355715,0.0001999,2]
[362205976,1748097046294,-728.1247385,0.00019995,2]
[362205977,1748097046304,-958081.13475353,0.00019995,2]
[362205978,1748097046313,-20000.0,0.00019995,2]
[362205979,1748097046323,-6142.3923045,0.00019996,2]
[362205980,1748097046332,-61313.17951864,0.00019996,2]
[362205981,1748097046433,-5708.53347057,0.00019996,2]
[362205996,1748097870576,233.97,0.00013699,2]
[362205998,1748097880678,771.25,0.00016814,2]
[362205999,1748097922334,-203.0,0.000174,2]
[362206000,1748097951343,-171.47930532,0.00018251,2]
[362206001,1748097953427,-168.006001,0.00018159,2]
[362206002,1748097953451,-139.01898284,0.00018251,2]
[362206003,1748097957634,-236.2402624,0.00018251,2]
[362206004,1748097959088,-166.588303,0.00018251,2]
[362206005,1748097961222,-184.69659614,0.00018251,2]
[362206006,1748097963391,-239.97792417,0.00018251,2]
[362206007,1748097967379,-197.47902788,0.00018251,2]
[362206008,1748097968784,-126.90888432,0.00018251,2]
[362206009,1748097978761,1848.0,0.000274,120]
[362206010,1748098000142,-250.0,0.00018703,2]
[362206011,1748098000165,-94.39559435,0.00018882,2]
[362206014,1748098232309,-551.09,0.00018761,2]
[362206015,1748098232318,-556.55615845,0.00018882,2]
[362206016,1748098232331,-3349.0482472,0.00018882,2]
[362206017,1748098232340,-150.0,0.00018896,7]
[362206018,1748098232350,-381.5,0.00018909,2]
[362206019,1748098232359,-155.52,0.00018928,2]
[362206020,1748098232369,-300.0,0.00018935,2]
[362206021,1748098232379,-300.0,0.00018935,2]
[362206022,1748098232388,-1200.0,0.00018935,2]
[362206023,1748098232398,-23900.0,0.00018936,2]
[362206024,1748098232407,-235.7790497,0.00018998,2]
[362206025,1748098232416,-151.0,0.00018999,2]
[362206026,1748098232426,-668.65185757,0.00018999,2]
[362206027,1748098232436,-668.65185757,0.00018999,2]
[362206028,1748098232446,-388.20102817,0.00018999,2]
[362206029,1748098232456,-207.4,0.00018999,2]
[362206030,1748098232466,-771.25,0.00019077,2]
[362206031,1748098232475,-693.3919763,0.00019547,2]
[362206032,1748098232485,-363.100398,0.00019598,2]
[362206033,1748098232499,-300.0,0.000196,2]
[362206034,1748098232508,-166.75,0.00019611,2]
[362206035,1748098232518,-663.93114837,0.00019718,2]
[362206036,1748098232530,-1828.8228368,0.00019718,2]
[362206037,1748098232543,-410.95522318,0.00019718,2]
[362206038,1748098232555,-6074.95447856,0.00019718,2]
[362206039,1748098232627,-472.64,0.00019718,2]
[362206040,1748098232640,-130.1976354,0.00019718,2]
[362206041,1748098232652,-864.76119748,0.00019723,2]
[362206042,1748098232662,-119.01316662,0.00019725,2]
[362206050,1748098238354,-23900.0,0.00018797,2]
[362206051,1748098238364,-30.98683338,0.00019725,2]
[362206052,1748098238373,-906.75,0.00019726,2]
[362206053,1748098238382,-453.54,0.00019726,2]
[362206054,1748098238392,-453.54,0.00019726,2]
[362206055,1748098238402,-300.0,0.00019726,2]
[362206056,1748098238411,-453.54,0.00019726,2]
[362206057,1748098238420,-453.43,0.00019726,2]
[362206058,1748098238430,-150.0,0.00019726,2]
[362206059,1748098238440,-340.34,0.00019726,2]
[362206060,1748098238449,-2063.53170558,0.00019775,2]
[362206061,1748098238458,-6069.58944112,0.000198,2]
[362206062,1748098238468,-154.04382782,0.000198,2]
[362206063,1748098238477,-6069.5894411,0.00019811,2]
[362206064,1748098238487,-6069.5894411,0.00019822,2]
[362206065,1748098238499,-6069.5894411,0.00019833,2]
[362206066,1748098238508,-6069.5894411,0.00019844,2]
[362206067,1748098238518,-6069.5894411,0.00019856,2]
[362206068,1748098238528,-422.445,0.0001986,2]
[362206069,1748098238539,-800.0,0.0001986,2]
[362206070,1748098238548,-154.0,0.0001986,2]
[362206071,1748098238558,-4182.826,0.0001986,2]
[362206072,1748098238567,-881.0,0.0001986,2]
[362206073,1748098238578,-297.431,0.0001986,2]
[362206074,1748098238588,-6069.5894411,0.00019867,2]
[362206075,1748098238599,-6069.5894411,0.00019878,2]
[362206076,1748098238609,-6069.5894411,0.00019889,2]
[362206077,1748098238618,-500.0,0.00019896,2]
[362206078,1748098238627,-1000.0,0.00019896,2]
[362206079,1748098238636,-150.62741814,0.00019899,2]
[362206080,1748098238645,-5000.0,0.000199,2]
[362206081,1748098238655,-281.19443862,0.000199,2]
[362206082,1748098238665,-10425.9266937,0.000199,2]
[362206083,1748098238674,-10425.9266937,0.000199,2]
[362206084,1748098238683,-5096.30846185,0.000199,2]
[362206085,1748098238695,-5329.61823185,0.000199,2]
[362206086,1748098238705,-1200.9314551,0.000199,2]
[362206087,1748098238716,-740.32098158,0.000199,2]
[362206089,1748098238727,-389.52345525,0.000199,2]
[362206093,1748098240446,-500.0,0.000199,2]
[362206096,1748098240644,-1744.1291125,0.000199,2]
[362206097,1748098240854,-5851.02168927,0.000199,2]
[362206098,1748098240863,-2297.97831073,0.000199,2]
[362206110,1748098246358,-275.548,0.0001986,2]
[362206111,1748098246369,-5000.0,0.000199,2]
[362206112,1748098246379,-8127.94838297,0.000199,2]
[362206113,1748098246389,-10425.9266937,0.000199,2]
[362206114,1748098246398,-10425.9266937,0.000199,2]
[362206115,1748098246407,-10425.9266937,0.000199,2]
[362206116,1748098246417,-10425.9266937,0.000199,2]
[362206117,1748098246428,-10425.9266937,0.000199,2]
[362206118,1748098246436,-10425.9266937,0.000199,2]
[362206119,1748098246445,-10425.9266937,0.000199,2]
[362206120,1748098246455,-10425.9266937,0.000199,2]
[362206121,1748098246464,-10425.9266937,0.000199,2]
[362206122,1748098246473,-10144.57745728,0.000199,2]
[362206123,1748098246483,-6069.5894411,0.000199,2]
[362206124,1748098246495,-746.29332508,0.000199,2]
[362206125,1748098246504,-585.911,0.00019901,2]
[362206126,1748098246513,-12658.87284773,0.00019917,2]
[362206127,1748098246522,-511.23095245,0.00019973,2]
[362206128,1748098246531,-501.08184199,0.00019973,2]
[362206129,1748098246540,-500.0,0.00019973,2]
[362206130,1748098246550,-1017.78038495,0.0001998,2]
[362206131,1748098246561,-200.0,0.00019982,2]
[362206132,1748098246573,-82090.77681577,0.00019993,2]
[362206133,1748098246589,-1112.80995982,0.00019993,2]
[362206134,1748098246602,-54119.67789291,0.00019993,2]
[362206135,1748098246612,-1000.0,0.00019995,2]
[362206136,1748098246621,-150.0,0.00019995,2]
[362206137,1748098246631,-152.899037,0.00019996,2]
[362206138,1748098246640,-151.0,0.00019996,2]
[362206139,1748098246649,-205.104853,0.00019996,2]
[362206140,1748098246658,-151.0,0.00019996,2]
[362206141,1748098246669,-152.325154,0.00019996,2]
[362206142,1748098246680,-151.0,0.00019996,2]
[362206143,1748098246692,-151.0,0.00019996,2]
[362206144,1748098246702,-151.89328,0.00019996,2]
[362206145,1748098246713,-151.0,0.00019996,2]
[362206146,1748098246724,-200.0,0.00019996,2]
[362206147,1748098246735,-175.0,0.00019996,2]
[362206148,1748098246745,-200.0,0.00019996,2]
[362206149,1748098246755,-152.028064,0.00019998,2]
[362206150,1748098246764,-5951.57688382,0.00019999,2]
[362206151,1748098246776,-1001.96873762,0.00019999,2]
[362206152,1748098246787,-1344.8293152,0.00019999,2]
[362206153,1748098246798,-1963.843077,0.00019999,2]
[362206155,1748098246819,-503.03342109,0.00019999,2]
[362206156,1748098392115,500.0,0.00027398,120]
[362206157,1748098395802,2000.0,0.00027398,120]
[362206158,1748098400540,500.0,0.00027398,120]
[362206159,1748098403879,500.0,0.00027398,120]
[362206160,1748098642915,250.0,0.00015,2]
[362206161,1748098643988,300.0,0.00017,2]
[362206163,1748098918932,494.73695922,0.000274,120]
[362206165,1748099036684,242.0,0.00013699,2]
[362206167,1748099081839,300.00000099,0.000274,120]
[362206168,1748099318439,150.0,0.00017001,2]
[362206169,1748099320063,720.31,0.00016867,2]
[362206171,1748099431571,-203.0,0.00017273,2]
[362206172,1748099431581,-200.0,0.00017587,2]
[362206173,1748099431590,-250.88725067,0.00017901,2]
[362206174,1748099431600,-200.0,0.00018157,2]
[362206175,1748099431609,-2572.19794449,0.00018272,2]
[362206176,1748099431619,-200.0,0.00018536,2]
[362206177,1748099431628,-250.0,0.000188,2]
[362206178,1748099431638,-190.75,0.00018825,2]
[362206179,1748099431647,-150.0,0.00018863,2]
[362206180,1748099431656,-1680.06,0.00018917,2]
[362206181,1748099431665,-150.0,0.00018937,7]
[362206182,1748099431675,-350.0,0.00019,2]
[362206183,1748099431685,-200.0,0.00019,2]
[362206184,1748099431695,-1000.0,0.00019054,2]
[362206185,1748099431704,-153.96,0.0001909,2]
[362206186,1748099431713,-720.31,0.0001913,2]
[362206187,1748099431722,-753.0,0.00019173,2]
[362206188,1748099431731,-300.0,0.00019174,2]
[362206189,1748099431740,-5665.8,0.00019175,2]
[362206190,1748099431750,-303.56,0.000192,2]
[362206191,1748099431759,-4054.0,0.0001956,2]
[362206192,1748099431768,-881.0,0.0001956,2]
[362206193,1748099431778,-154.0,0.0001956,2]
[362206195,1748099431787,-326.790358,0.00019599,2]
[362206197,1748099431796,-164.52,0.00019734,2]
[362206198,1748099431805,-151.0,0.00019747,2]
[362206200,1748099431815,-207.4,0.00019747,2]
[362206202,1748099431824,-668.65185757,0.00019747,2]
[362206204,1748099431833,-668.65185757,0.00019747,2]
[362206206,1748099431843,-150.0,0.00019758,2]
[362206208,1748099431852,-710.48,0.00019759,2]
[362206210,1748099431861,-8633.87,0.00019759,2]
[362206212,1748099431871,-150.99,0.00019759,2]
[362206213,1748099431880,-4683.93,0.00019759,2]
[362206215,1748099431889,-488.09,0.00019759,2]
[362206217,1748099431900,-3766.85,0.00019759,2]
[362206219,1748099431913,-9999.99,0.0001976,2]
[362206221,1748099431923,-150.99,0.0001976,2]
[362206223,1748099431932,-16016.38434594,0.0001979,2]
[362206225,1748099431942,-229.1569,0.000198,2]
[362206227,1748099431953,-1000.0,0.000198,2]
[362206229,1748099431963,-567.5366,0.000198,2]
[362206231,1748099431972,-150.0,0.0001986,2]
[362206233,1748099431984,-800.0,0.0001986,2]
[362206235,1748099431993,-1523.0212,0.00019881,2]
[362206236,1748099432002,-2485.2052,0.00019893,2]
[362206238,1748099432011,-485.03947713,0.00019893,2]
[362206240,1748099432021,-485.03947712,0.00019894,2]
[362206242,1748099432030,-485.03947712,0.00019895,2]
[362206244,1748099432039,-485.03947712,0.00019895,2]
[362206246,1748099432048,-485.03947712,0.00019896,2]
[362206248,1748099432057,-485.03947712,0.00019897,2]
[362206262,1748099432288,-485.03947712,0.00019898,2]
[362206264,1748099432299,-485.03947712,0.00019898,2]
[362206266,1748099432309,-485.03947712,0.00019899,2]
[362206268,1748099432318,-3127.77800811,0.000199,2]
[362206270,1748099432326,-3127.77800811,0.000199,2]
[362206272,1748099432335,-3127.77800811,0.000199,2]
[362206274,1748099432344,-485.03947712,0.000199,2]
[362206276,1748099432354,-3127.77800811,0.000199,2]
[362206278,1748099432362,-492.95176999,0.000199,2]
[362206283,1748099432402,-2634.82623812,0.000199,2]
[362206285,1748099432411,-5000.0,0.000199,2]
[362206287,1748099432420,-3127.77800811,0.000199,2]
[362206289,1748099432429,-3127.77800811,0.000199,2]
[362206291,1748099432438,-3127.77800811,0.000199,2]
[362206293,1748099432447,-3127.77800811,0.000199,2]
[362206295,1748099432456,-3127.77800811,0.000199,2]
[362206297,1748099432465,-3127.77800811,0.000199,2]
[362206298,1748099432474,-3127.77800811,0.000199,2]
[362206300,1748099432483,-3127.77800811,0.000199,2]
[362206302,1748099432492,-3127.77800811,0.000199,2]
[362206304,1748099432501,-3127.77800811,0.000199,2]
[362206306,1748099432509,-3127.77800811,0.000199,2]
[362206308,1748099432518,-3127.77800811,0.000199,2]
[362206310,1748099432527,-3127.77800811,0.000199,2]
[362206312,1748099432536,-166.20652745,0.000199,2]
[362206314,1748099432545,-3550.60211002,0.000199,2]
[362206316,1748099432554,-468.728,0.00019923,2]
[362206318,1748099432563,-157.30778147,0.00019973,2]
[362206320,1748099432572,-356.5698577,0.00019993,2]
[362206322,1748099432581,-1000.0,0.00019998,2]
[362206323,1748099432589,-364.06236925,0.00019999,2]
[362206325,1748099432598,-20000.0,0.00019999,2]
[362206326,1748099432607,-69163.30391617,0.0002,2]
[362206411,1748099437784,-800.70977,0.0002,2]
[362206418,1748099441562,-0.0066609,0.0002,2]
[362206419,1748099441574,-9317.64232113,0.0002,2]
[362206425,1748099442682,-1152.0,0.0001956,2]
[362206426,1748099442692,-114409.6543976,0.0002,2]
[362206427,1748099442704,-227556.4193719,0.0002,2]
[362206462,1748099445805,-421.4510961,0.00019993,2]
[362206463,1748099445815,-284.07731495,0.0002,2]
[362206469,1748099592924,500.0,0.00027398,120]
[362206470,1748099597780,2000.0,0.00027398,120]
[362206471,1748099600480,500.0,0.00027398,120]
[362206472,1748099604472,500.0,0.00027398,120]
[362206473,1748099656762,236.98164382,0.00027,120]
[362206474,1748099664876,211.8,0.00021945,30]
[362206476,1748100141494,165.5822956,0.00013699,2]
[362206477,1748100141522,75.7277044,0.00013699,2]
[362206478,1748100190392,500.0,0.00027398,120]
[362206479,1748100193038,2000.0,0.00027398,120]
[362206480,1748100196322,504.007137,0.00027398,120]
[362206481,1748100373639,-178.94784282,0.00018157,2]
[362206482,1748100375125,-24.05215718,0.00018157,2]
[362206485,1748100438002,673.11,0.00016948,2]
[362206486,1748100454889,250.0,0.00015,2]
[362206487,1748100455967,300.0,0.00017,2]
[362206501,1748100631850,-205.0,0.00018157,2]
[362206502,1748100631859,-154.08,0.00018443,2]
[362206503,1748100631869,-154.08,0.00018448,2]
[362206504,1748100631878,-154.08,0.00018453,2]
[362206505,1748100631887,-154.08,0.00018459,2]
[362206506,1748100631896,-154.08,0.00018464,2]
[362206507,1748100631906,-154.08,0.0001847,2]
[362206508,1748100631916,-70.52,0.00018475,2]
[362206509,1748100631943,-83.56,0.00018475,2]
[362206510,1748100631952,-154.08,0.00018481,2]
[362206511,1748100631962,-154.08,0.00018486,2]
[362206512,1748100631972,-154.08,0.00018491,2]
[362206513,1748100631981,-154.08,0.00018497,2]
[362206514,1748100631990,-154.08,0.00018502,2]
[362206515,1748100632000,-154.08,0.00018508,2]
[362206516,1748100632009,-154.08,0.00018513,2]
[362206517,1748100632018,-154.08,0.00018519,2]
[362206518,1748100632027,-154.08,0.00018524,2]
[362206519,1748100632036,-154.08,0.00018529,2]
[362206520,1748100632045,-154.08,0.00018535,2]
[362206521,1748100632054,-3151.36,0.00018736,2]
[362206522,1748100632063,-207.73,0.00018736,2]
[362206523,1748100632072,-554.99,0.00018784,2]
[362206524,1748100632081,-250.0,0.00018836,2]
[362206525,1748100632090,-1200.0,0.00018864,2]
[362206526,1748100632099,-300.0,0.00018866,2]
[362206527,1748100632108,-150.0,0.00018866,2]
[362206528,1748100632117,-1000.0,0.00018867,2]
[362206529,1748100632126,-12513.49,0.00018867,2]
[362206531,1748100632135,-200.0,0.00018876,2]
[362206533,1748100632144,-150.0,0.00018877,7]
[362206535,1748100632154,-500.0,0.0001895,2]
[362206537,1748100632163,-150.0,0.00018965,2]
[362206539,1748100632171,-207.4,0.00018966,2]
[362206541,1748100632181,-1000.0,0.00018966,2]
[362206543,1748100632190,-500.0,0.00018966,2]
[362206545,1748100632199,-500.0,0.00018966,2]
[362206547,1748100632208,-500.0,0.00018966,2]
[362206549,1748100632217,-500.0,0.00018966,2]
[362206551,1748100632226,-500.0,0.00018966,2]
[362206552,1748100632236,-500.0,0.00018966,2]
[362206554,1748100632245,-210.20225257,0.00018966,2]
[362206556,1748100632254,-500.0,0.00018966,2]
[362206558,1748100632263,-500.0,0.00018966,2]
[362206560,1748100632273,-478.78437462,0.00018966,2]
[362206562,1748100632282,-343.41509237,0.00018966,2]
[362206565,1748100632291,-350.6219079,0.00018966,2]
[362206568,1748100632300,-23900.0,0.00018967,2]
[362206571,1748100632309,-350.0,0.00019,2]
[362206574,1748100632318,-673.11,0.00019212,2]
[362206576,1748100632327,-155.52,0.00019263,2]
[362206578,1748100632336,-500.0,0.00019288,2]
[362206580,1748100632345,-1001.46591193,0.00019498,2]
[362206582,1748100632354,-166.18,0.00019591,2]
[362206584,1748100632363,-361.413426,0.00019599,2]
[362206586,1748100632373,-151.0,0.00019688,2]
[362206588,1748100632382,-668.65185757,0.00019688,2]
[362206590,1748100632396,-668.65185757,0.00019688,2]
[362206592,1748100632405,-183.80414133,0.00019699,2]
[362206594,1748100632414,-206.098918,0.00019699,2]
[362206596,1748100632423,-186.2548733,0.00019699,2]
[362206597,1748100632434,-205.51531957,0.00019699,2]
[362206599,1748100632443,-167729.84735309,0.000197,2]
[362206601,1748100632453,-150.99,0.00019727,2]
[362206603,1748100632462,-976.92,0.00019727,2]
[362206605,1748100632472,-312.76267751,0.00019792,2]
[362206607,1748100632481,-166.20652743,0.000198,2]
[362206609,1748100632490,-542.605,0.0001986,2]
[362206611,1748100632499,-154.0,0.0001986,2]
[362206613,1748100632508,-4054.0,0.0001986,2]
[362206615,1748100632518,-758.899,0.0001986,2]
[362206617,1748100632527,-1000.0,0.00019893,2]
[362206619,1748100632536,-35930.8565,0.00019893,2]
[362206621,1748100632545,-1500.90510143,0.00019899,2]
[362206652,1748100632833,-1500.90510134,0.00019899,2]
[362206654,1748100632844,-1500.90510134,0.00019899,2]
[362206656,1748100632854,-1500.90510134,0.00019899,2]
[362206658,1748100632864,-1500.90510134,0.00019899,2]
[362206660,1748100632873,-1500.90510134,0.000199,2]
[362206662,1748100632883,-1500.90510134,0.000199,2]
[362206664,1748100632892,-19437.4543,0.000199,2]
[362206666,1748100632902,-1500.90510134,0.000199,2]
[362206668,1748100632911,-1500.90510134,0.000199,2]
[362206670,1748100632921,-252.50003374,0.000199,2]
[362206672,1748100632930,-5000.0,0.000199,2]
[362206674,1748100632940,-352.3440848,0.000199,2]
[362206676,1748100632949,-352.34408468,0.000199,2]
[362206678,1748100632959,-352.34408468,0.000199,2]
[362206680,1748100632970,-352.34408468,0.000199,2]
[362206682,1748100632980,-352.34408468,0.000199,2]
[362206685,1748100632995,-352.34408468,0.000199,2]
[362206686,1748100633004,-352.34408468,0.000199,2]
[362206688,1748100633014,-352.34408468,0.000199,2]
[362206691,1748100633025,-352.34408468,0.000199,2]
[362206693,1748100633036,-352.34408468,0.000199,2]
[362206695,1748100633047,-352.34408468,0.000199,2]
[362206697,1748100633057,-352.34408468,0.000199,2]
[362206699,1748100633067,-352.34408468,0.000199,2]
[362206701,1748100633078,-352.34408468,0.000199,2]
[362206703,1748100633089,-352.34408468,0.000199,2]
[362206705,1748100633099,-352.34408468,0.000199,2]
[362206707,1748100633109,-1106.64499678,0.000199,7]
[362206709,1748100633120,-352.34408468,0.000199,2]
[362206711,1748100633130,-352.34408468,0.000199,2]
[362206713,1748100633140,-352.34408468,0.000199,2]
[362206715,1748100633150,-352.34408468,0.000199,2]
[362206716,1748100633160,-1500.90510134,0.000199,2]
[362206718,1748100633170,-1492.58665012,0.000199,2]
[362206720,1748100633181,-500.0,0.00019945,2]
[362206722,1748100633190,-449.91,0.00019946,2]
[362206724,1748100633200,-627.0,0.00019973,2]
[362206726,1748100633210,-173.85680973,0.00019973,2]
[362206728,1748100633220,-438.0,0.00019973,2]
[362206730,1748100633230,-14806.0,0.00019973,2]
[362206732,1748100633245,-500.0,0.00019973,2]
[362206734,1748100633255,-500.0,0.00019973,2]
[362206736,1748100633265,-12420.0,0.0001999,2]
[362206738,1748100633274,-182.03118462,0.00019999,2]
[362206740,1748100633284,-36379.02638923,0.00019999,2]
[362206746,1748100633348,-685.78494,0.00019999,2]
[362206748,1748100634731,170.0,0.000274,120]
[362206751,1748100637710,-798.0,0.0001986,2]
[362206752,1748100637721,-269.79203783,0.0001999,2]
[362206753,1748100637731,-4179.15014217,0.00019999,2]
[362206754,1748100637807,-3974.60834037,0.00019999,2]
[362206755,1748100637901,-421.24,0.00019999,2]
[362206759,1748100640057,-421.89772044,0.00018966,2]
[362206760,1748100640067,-81.94896293,0.00018966,2]
[362206761,1748100640079,-344.03574517,0.00018966,2]
[362206762,1748100640089,-1152.0,0.0001986,2]
[362206763,1748100640098,-2381.39142356,0.00019999,2]
[362206764,1748100640243,-100000.11028141,0.00019999,2]
[362206789,1748100645923,-326763.84427698,0.00019999,2]
[362206790,1748100645933,-276.25,0.00019999,2]
[362206791,1748100645942,-79024.78507865,0.00019999,2]
[362206792,1748100645951,-20000.0,0.00019999,2]
[362206793,1748100645961,-546514.27064437,0.0002,2]
[362206794,1748100645975,-2409.563,0.0002,2]
[362206795,1748100645987,-3570.5853168,0.0002,2]
[362206796,1748100658188,171.61,0.00016928,2]
[362206797,1748100658495,180.0,0.000274,120]
[362206798,1748100669112,10000.0,0.000274,120]
[362206799,1748100678578,10000.0,0.000274,120]
[362206800,1748100689065,6522.00962282,0.000274,120]
[362206805,1748100840758,185.32,0.00021945,30]